bitfinex/quotes_BTCUSD_20250530
["timestamp","ask_amount","ask_price","bid_price","bid_amount"]
[1748611287018,0.20854724,105450.0,105440.0,0.0667022]
[1748611287258,0.5055048,105450.0,105440.0,0.0667022]
[1748611287708,0.5055448,105450.0,105440.0,0.0667022]
[1748611287916,0.51502715,105450.0,105440.0,0.0667022]
[1748611288359,0.52450968,105450.0,105440.0,0.0667022]
[1748611289007,0.51502715,105450.0,105440.0,0.0667022]
[1748611289229,0.52450968,105450.0,105440.0,0.0667022]
[1748611289666,0.5055448,105450.0,105440.0,0.0667022]
[1748611289883,0.51502715,105450.0,105440.0,0.0667022]
[1748611290344,0.54347546,105450.0,105440.0,0.0168022]
[1748611290567,0.54347528,105450.0,105440.0,0.0168022]
[1748611290787,0.54325844,105450.0,105440.0,0.0168022]
[1748611291022,0.54325844,105450.0,105440.0,0.0410022]
[1748611291920,0.52450968,105450.0,105440.0,0.0410022]
[1748611292152,0.51502715,105450.0,105440.0,0.0410022]
[1748611292391,0.5339923,105450.0,105440.0,0.0410022]
[1748611293504,0.5434751,105450.0,105440.0,0.0410022]
[1748611293793,0.5434751,105450.0,105440.0,0.0168022]
[1748611294016,1.09027419,105450.0,105440.0,0.0168022]
[1748611294238,1.1270869,105450.0,105440.0,0.0168022]
[1748611294471,1.15702119,105450.0,105440.0,0.0168022]
[1748611294693,1.14570848,105450.0,105440.0,0.0168022]
[1748611295442,0.22320946,105430.0,105420.0,4e-05]
[1748611295675,0.79170346,105430.0,105420.0,8.899e-05]
[1748611295900,0.82566863,105430.0,105420.0,8.899e-05]
[1748611296144,0.00948604,105410.0,105400.0,0.07484]
[1748611296405,0.42518621,105410.0,105400.0,0.07484]
[1748611296628,0.42518621,105410.0,105400.0,0.07532976]
[1748611296848,0.45366521,105410.0,105400.0,0.07532976]
[1748611297295,0.46315152,105410.0,105400.0,0.05052976]
[1748611297515,0.46315143,105410.0,105400.0,0.05052976]
[1748611297757,0.45366512,105410.0,105400.0,0.05052976]
[1748611297978,0.45366512,105410.0,105400.0,0.07552976]
[1748611298188,0.45366521,105410.0,105400.0,0.07552976]
[1748611298614,0.45566521,105410.0,105400.0,0.07552976]
[1748611298845,0.44817899,105410.0,105400.0,0.07652976]
[1748611299070,0.45766521,105410.0,105400.0,0.07652976]
[1748611299485,0.44817899,105410.0,105400.0,0.07652976]
[1748611299696,0.45766521,105410.0,105400.0,0.07652976]
[1748611300331,0.4244348,105410.0,105400.0,0.10192976]
[1748611300761,0.4844348,105410.0,105400.0,0.10192976]
[1748611301176,0.1695948,105410.0,105400.0,0.10192976]
[1748611301389,0.4842748,105410.0,105400.0,0.10192976]
[1748611301842,0.49376075,105410.0,105400.0,0.10192976]
[1748611302053,0.43376084,105410.0,105400.0,0.10192976]
[1748611302267,0.43376075,105410.0,105400.0,0.10192976]
[1748611302505,0.44324688,105410.0,105400.0,0.10192976]
[1748611302760,0.1095948,105410.0,105400.0,0.10192976]
[1748611302972,0.01854085,105410.0,105400.0,0.10192976]
[1748611310007,0.004,105410.0,105400.0,0.10192976]
[1748611317655,0.09405173,105410.0,105400.0,0.10192976]
[1748611318119,0.01854085,105410.0,105400.0,0.10192976]
[1748611320581,0.07854085,105410.0,105400.0,0.10192976]
[1748611321057,0.01854085,105410.0,105400.0,0.10192976]
[1748611321743,0.02755139,105410.0,105400.0,0.10192976]
[1748611324162,0.01301054,105410.0,105400.0,0.10192976]
[1748611326072,0.01302593,105410.0,105400.0,0.10192976]
[1748611326751,0.01302684,105410.0,105400.0,0.10192976]
[1748611327963,0.07302684,105410.0,105400.0,0.10192976]
[1748611329816,0.42302684,105410.0,105400.0,0.10192976]
[1748611330272,0.42303169,105410.0,105400.0,0.10192976]
[1748611330504,0.43757254,105410.0,105400.0,0.10192976]
[1748611330731,0.43757345,105410.0,105400.0,0.10192976]
[1748611330973,0.43757343,105410.0,105400.0,0.10192976]
[1748611331891,0.43757343,105410.0,105400.0,0.07652976]
[1748611332615,0.43757343,105410.0,105400.0,0.09212976]
[1748611334175,0.43757343,105410.0,105400.0,0.07652976]
[1748611334440,0.5195948,105410.0,105400.0,0.07652976]
[1748611334653,0.53811539,105410.0,105400.0,0.07652976]
[1748611334908,0.52862944,105410.0,105400.0,0.07652976]
[1748611335347,0.59217879,105410.0,105400.0,0.05152976]
[1748611335593,0.58269248,105410.0,105400.0,0.05152976]
[1748611335838,0.94166501,105410.0,105400.0,0.05152976]
[1748611336100,0.95295831,105410.0,105400.0,0.05152976]
[1748611336783,0.97193138,105410.0,105400.0,0.05152976]
[1748611337012,0.9624448,105410.0,105400.0,0.05152976]
[1748611337450,0.97193147,105410.0,105400.0,0.05152976]
[1748611337663,0.9624448,105410.0,105400.0,0.05152976]
[1748611338763,0.95294852,105410.0,105400.0,0.05152976]
[1748611338980,0.9624351,105410.0,105400.0,0.05152976]
[1748611339195,0.96243501,105410.0,105400.0,0.05152976]
[1748611340234,0.92736221,105410.0,105400.0,0.05152976]
[1748611340237,0.92736221,105410.0,105400.0,0.06792976]
[1748611340496,0.92556075,105410.0,105400.0,0.06792976]
[1748611341040,0.56658813,105410.0,105400.0,0.06792976]
[1748611341297,0.57607435,105410.0,105400.0,0.06792976]
[1748611342808,0.56658813,105410.0,105400.0,0.06792976]
[1748611343029,0.57606898,105410.0,105400.0,0.06792976]
[1748611343495,0.59683644,105410.0,105400.0,0.05152976]
[1748611343751,0.60632284,105410.0,105400.0,0.05152976]
[1748611343994,0.59683644,105410.0,105400.0,0.05152976]
[1748611344450,0.59683448,105410.0,105400.0,0.06732976]
[1748611344678,0.58555442,105410.0,105400.0,0.06732976]
[1748611344937,0.87961591,105410.0,105400.0,0.08372976]
[1748611345158,0.86833585,105410.0,105400.0,0.08372976]
[1748611346071,0.87782189,105410.0,105400.0,0.08372976]
[1748611346354,0.95333277,105410.0,105400.0,0.06732976]
[1748611346625,1.53812103,105410.0,105400.0,0.05152976]
[1748611346863,1.41415963,105410.0,105400.0,0.05152976]
[1748611347098,1.60389494,105410.0,105400.0,0.05152976]
[1748611347333,1.59440194,105410.0,105400.0,0.05152976]
[1748611348152,1.49933141,105410.0,105400.0,0.05152976]
[1748611349300,1.49991799,105410.0,105400.0,0.05152976]
[1748611349524,1.50881799,105410.0,105400.0,0.05152976]
[1748611350540,1.50881799,105410.0,105400.0,0.02928895]
[1748611350541,1.57814568,105410.0,105400.0,0.02928895]
[1748611350784,1.53152079,105410.0,105400.0,0.02928895]
[1748611351247,1.51654856,105410.0,105400.0,0.02928895]
[1748611351477,1.52653978,105410.0,105400.0,0.02928895]
[1748611351705,1.4915597,105410.0,105400.0,0.02928895]
[1748611351923,1.5415597,105410.0,105400.0,0.02928895]
[1748611352387,1.4915597,105410.0,105400.0,0.02928895]
[1748611352627,1.56039306,105410.0,105400.0,0.02928895]
[1748611353130,1.54537314,105410.0,105400.0,0.02928895]
[1748611354504,1.54337314,105410.0,105400.0,0.02828895]
[1748611355001,1.54637314,105410.0,105400.0,0.02828895]
[1748611355274,1.54337314,105410.0,105400.0,0.02828895]
[1748611355558,1.50248705,105410.0,105400.0,0.02828895]
[1748611355805,1.5723057,105410.0,105400.0,0.02828895]
[1748611356046,1.5753057,105410.0,105400.0,0.02828895]
[1748611356255,1.5723057,105410.0,105400.0,0.02828895]
[1748611356479,1.55729959,105410.0,105400.0,0.02828895]
[1748611356707,1.57129959,105410.0,105400.0,0.02928895]
[1748611356934,1.65877132,105410.0,105400.0,0.02928895]
[1748611357155,1.57129959,105410.0,105400.0,0.02928895]
[1748611357616,1.60452488,105410.0,105400.0,0.02928895]
[1748611358559,1.61952573,105410.0,105400.0,0.02928895]
[1748611359904,1.61948381,105410.0,105400.0,0.02928895]
[1748611360133,1.67263479,105410.0,105400.0,0.02928895]
[1748611360397,1.61948381,105410.0,105400.0,0.02928895]
[1748611362903,1.72708381,105410.0,105400.0,0.02928895]
[1748611364260,0.21378165,105400.0,105390.0,0.00040069]
[1748611364458,0.36488673,105400.0,105390.0,0.0005475]
[1748611364926,0.35598673,105400.0,105390.0,0.0005475]
[1748611365369,0.35898673,105400.0,105390.0,0.0005475]
[1748611365585,0.37548673,105400.0,105390.0,0.0005475]
[1748611366320,0.37848673,105400.0,105390.0,0.0005475]
[1748611369269,0.1633539,105400.0,105390.0,0.0305475]
[1748611369500,0.03150384,105400.0,105390.0,0.0305475]
[1748611369781,0.006,105400.0,105390.0,0.0305475]
[1748611370049,0.006,105400.0,105390.0,0.03291935]
[1748611370302,0.41,105410.0,105400.0,0.0324]
[1748611370549,0.35,105410.0,105400.0,0.66441138]
[1748611370790,0.3344,105410.0,105400.0,0.66203975]
[1748611371036,0.3178,105410.0,105400.0,0.66203975]
[1748611371254,0.3022,105410.0,105400.0,0.13293385]
[1748611371715,0.3022,105410.0,105400.0,0.67151965]
[1748611371962,0.25879965,105410.0,105400.0,1.20127297]
[1748611372194,0.17682341,105410.0,105400.0,2.05236067]
[1748611372426,0.13348493,105470.0,105410.0,0.53922163]
[1748611372427,0.22423353,105470.0,105410.0,0.53922163]
[1748611372662,0.17551088,105470.0,105440.0,0.5385858]
[1748611372894,0.17551088,105470.0,105440.0,0.62963975]
[1748611373136,0.17551088,105470.0,105450.0,0.00237056]
[1748611373895,0.17551088,105470.0,105450.0,0.09105395]
[1748611374123,0.10048787,105470.0,105450.0,0.09105395]
[1748611374373,0.10048787,105470.0,105430.0,0.34]
[1748611374609,0.10048787,105470.0,105450.0,0.10476]
[1748611375628,0.10048787,105470.0,105450.0,0.19781395]
[1748611375864,0.10048787,105470.0,105460.0,0.09342444]
[1748611376111,0.10048787,105470.0,105460.0,0.09105395]
[1748611377775,0.10048787,105470.0,105460.0,0.09342421]
[1748611378884,0.10048787,105470.0,105460.0,0.09442421]
[1748611379097,0.10148787,105470.0,105460.0,0.83282149]
[1748611379308,0.10148787,105470.0,105460.0,0.64080587]
[1748611379500,0.10148787,105470.0,105460.0,0.63132361]
[1748611379730,0.10148787,105470.0,105460.0,0.09205395]
[1748611380490,0.10148787,105470.0,105460.0,0.63355156]
[1748611380704,0.10148787,105470.0,105460.0,0.63966347]
[1748611380916,0.10148787,105470.0,105460.0,0.43105395]
[1748611381133,0.10048787,105470.0,105460.0,0.75273395]
[1748611381404,0.10048787,105470.0,105460.0,0.94137931]
[1748611381630,0.10048787,105470.0,105460.0,0.75173395]
[1748611381850,0.10048787,105470.0,105460.0,0.74873395]
[1748611382077,0.10048787,105470.0,105460.0,0.75373395]
[1748611382302,0.10048787,105470.0,105460.0,0.75573395]
[1748611382303,0.10148787,105470.0,105460.0,0.75573395]
[1748611382755,0.10148787,105470.0,105460.0,0.95486157]
[1748611382988,0.10148787,105470.0,105460.0,0.75573395]
[1748611383200,0.10148787,105470.0,105460.0,0.43805395]
[1748611383425,0.10148787,105470.0,105460.0,0.75565395]
[1748611384351,0.10148787,105470.0,105460.0,0.43805395]
[1748611384574,0.10148787,105470.0,105460.0,0.86041395]
[1748611385037,0.10148787,105470.0,105460.0,0.54273395]
[1748611385307,0.10148787,105470.0,105460.0,0.86045395]
[1748611385520,0.10148787,105470.0,105460.0,0.54273395]
[1748611387062,0.10148787,105470.0,105460.0,0.95221395]
[1748611387949,0.10148787,105470.0,105460.0,1.49148361]
[1748611388156,0.10148787,105470.0,105460.0,1.68112897]
[1748611388381,0.10148787,105470.0,105460.0,2.00667467]
[1748611388834,0.10148787,105470.0,105460.0,1.70957467]
[1748611389116,0.0902002,105470.0,105460.0,1.73411552]
[1748611389347,0.0428182,105470.0,105460.0,1.73411552]
[1748611389565,0.0428182,105470.0,105460.0,1.75424122]
[1748611389789,0.0428182,105470.0,105460.0,1.77543279]
[1748611390015,0.0428182,105470.0,105460.0,1.75530709]
[1748611390241,0.0428182,105470.0,105460.0,1.75330709]
[1748611390451,0.0438182,105470.0,105460.0,1.75330709]
[1748611390676,0.0428182,105470.0,105460.0,1.73211552]
[1748611390891,0.0418182,105470.0,105460.0,1.73211552]
[1748611391128,0.0418182,105470.0,105460.0,1.72711552]
[1748611391351,0.0428182,105470.0,105460.0,0.09805395]
[1748611391821,0.0428182,105470.0,105460.0,0.20873395]
[1748611392287,0.0428182,105470.0,105460.0,0.54873395]
[1748611393264,0.0418182,105470.0,105460.0,0.54173395]
[1748611393490,0.0428182,105470.0,105460.0,0.54773395]
[1748611393709,0.0428182,105470.0,105460.0,0.54173395]
[1748611394168,0.0586182,105470.0,105460.0,0.54173395]
[1748611394405,0.0586182,105470.0,105460.0,0.54673395]
[1748611394641,0.0428182,105470.0,105460.0,0.20673395]
[1748611396800,0.0028182,105470.0,105460.0,0.20673395]
[1748611402390,0.0186182,105470.0,105460.0,0.20673395]
[1748611402639,0.0347182,105470.0,105460.0,0.20673395]
[1748611403267,0.0347182,105470.0,105460.0,0.10205395]
[1748611403491,0.04373965,105470.0,105460.0,0.20673395]
[1748611403914,0.00373965,105470.0,105460.0,0.20673395]
[1748611404140,0.11880833,105490.0,105460.0,0.19573395]
[1748611404431,0.23009094,105490.0,105460.0,0.11168]
[1748611404652,0.001,105470.0,105460.0,0.11168]
[1748611404873,0.01127872,105480.0,105460.0,0.10768]
[1748611405104,0.00881117,105480.0,105460.0,0.10768]
[1748611405328,0.00881316,105480.0,105460.0,0.007]
[1748611405547,0.00881268,105480.0,105460.0,0.11168]
[1748611405763,0.06881271,105480.0,105460.0,0.11405032]
[1748611405979,0.06881274,105480.0,105460.0,0.11105032]
[1748611406213,0.08009146,105480.0,105460.0,0.10468]
[1748611406451,0.07127872,105480.0,105460.0,0.10468]
[1748611406665,0.06,105480.0,105460.0,0.10468]
[1748611406882,0.0316,105470.0,105460.0,0.10468]
[1748611407544,0.0316,105470.0,105460.0,0.11505032]
[1748611407769,0.0316,105470.0,105460.0,0.11205032]
[1748611407999,0.0316,105470.0,105460.0,0.11005032]
[1748611408286,0.0326,105470.0,105460.0,0.11505032]
[1748611409630,0.0326,105470.0,105460.0,0.008]
[1748611410083,0.0326,105470.0,105460.0,0.11268]
[1748611410993,0.00881175,105480.0,105460.0,0.11268]
[1748611411424,0.06881175,105480.0,105460.0,0.11268]
[1748611411655,0.06881126,105480.0,105460.0,0.10768]
[1748611411894,0.06881126,105480.0,105460.0,0.10468]
[1748611412120,0.06981126,105480.0,105460.0,0.11268]
[1748611412352,0.06981078,105480.0,105460.0,0.11268]
[1748611413658,0.061,105480.0,105460.0,0.11268]
[1748611413882,0.0157,105470.0,105460.0,0.11268]
[1748611414997,0.0157,105470.0,105460.0,0.10768]
[1748611415219,0.0167,105470.0,105460.0,0.11268]
[1748611415975,0.02572498,105470.0,105460.0,0.11568]
[1748611417331,0.04212498,105470.0,105460.0,0.11568]
[1748611418043,0.25603702,105490.0,105460.0,0.11568]
[1748611418266,0.28789959,105490.0,105460.0,0.11568]
[1748611418704,0.29737871,105490.0,105460.0,0.11568]
[1748611418921,0.29737862,105490.0,105460.0,0.11068]
[1748611419132,0.29804858,105490.0,105460.0,0.1048]
[1748611419361,0.00948163,105460.0,105430.0,0.0324]
[1748611419667,0.00948163,105460.0,105430.0,0.43105395]
[1748611419668,0.00948145,105460.0,105430.0,0.43105395]
[1748611419840,0.24170241,105470.0,105430.0,0.19585395]
[1748611420062,0.00948145,105460.0,105430.0,0.19585395]
[1748611420289,0.16714794,105470.0,105460.0,0.005]
[1748611420517,0.19901692,105470.0,105460.0,0.003]
[1748611420738,0.00948154,105460.0,105430.0,0.19585395]
[1748611420978,0.0305,105460.0,105430.0,0.19585395]
[1748611421201,0.0305,105460.0,105430.0,0.22975395]
[1748611421419,0.0305,105460.0,105430.0,0.22775395]
[1748611421634,0.0305,105460.0,105430.0,0.23175395]
[1748611421879,0.00948091,105470.0,105430.0,0.57175395]
[1748611422095,0.2313085,105480.0,105440.0,0.34]
[1748611422321,0.06,105460.0,105440.0,0.34]
[1748611423217,0.06,105460.0,105430.0,0.56975395]
[1748611423512,0.061,105460.0,105430.0,0.57275395]
[1748611423881,0.06,105460.0,105430.0,0.56775395]
[1748611424093,0.06,105460.0,105440.0,0.341]
[1748611424540,0.06,105460.0,105440.0,0.34]
[1748611425030,0.0921,105460.0,105440.0,0.34]
[1748611425253,0.10158145,105460.0,105440.0,0.34]
[1748611425494,0.028462,105450.0,105440.0,0.342]
[1748611426611,0.028462,105450.0,105440.0,0.34348787]
[1748611427063,0.028462,105450.0,105440.0,0.34248787]
[1748611427535,0.028462,105450.0,105440.0,0.34048787]
[1748611427753,0.028462,105450.0,105440.0,0.34148787]
[1748611427971,0.029462,105450.0,105440.0,0.34248787]
[1748611430023,0.03952535,105460.0,105440.0,0.34248787]
[1748611430263,0.03004354,105460.0,105440.0,0.34248787]
[1748611430502,0.05850554,105460.0,105440.0,0.34248787]
[1748611430754,0.07746943,105460.0,105440.0,0.34248787]
[1748611430976,0.06798735,105460.0,105440.0,0.34148787]
[1748611431276,0.06798726,105460.0,105440.0,0.34248787]
[1748611431505,0.06798726,105460.0,105440.0,0.34148787]
[1748611431748,0.0157,105450.0,105440.0,0.34148787]
[1748611431963,0.0157,105450.0,105440.0,0.34248787]
[1748611433117,0.0157,105450.0,105440.0,0.34148787]
[1748611433118,0.0318,105450.0,105440.0,0.34148787]
[1748611433582,0.04128244,105450.0,105440.0,0.34348787]
[1748611433801,0.04128253,105450.0,105440.0,0.34348787]
[1748611434032,0.06024831,105450.0,105440.0,0.00348787]
[1748611434276,0.27393566,105450.0,105440.0,0.00348787]
[1748611434498,0.66246428,105450.0,105440.0,0.00248787]
[1748611434732,0.67148361,105450.0,105440.0,0.00248787]
[1748611434989,0.67148361,105450.0,105440.0,0.00348787]
[1748611435441,0.66246428,105450.0,105440.0,0.00348787]
[1748611436113,0.72246428,105450.0,105440.0,0.00348787]
[1748611436355,0.72246428,105450.0,105440.0,0.00148787]
[1748611436582,0.72346428,105450.0,105440.0,0.00148787]
[1748611438161,0.72346428,105450.0,105440.0,0.00048787]
[1748611439446,0.10734085,105450.0,105440.0,0.00048787]
[1748611439663,0.0850232,105450.0,105440.0,0.00048787]
[1748611440105,0.07554085,105450.0,105440.0,0.00048787]
[1748611440331,0.09450573,105450.0,105440.0,0.00048787]
[1748611440549,0.47440589,105450.0,105440.0,0.00048787]
[1748611440788,0.4161327,105450.0,105440.0,0.00048787]
[1748611441493,0.00948415,105430.0,105410.0,0.0163]
[1748611441732,0.00948595,105410.0,105390.0,0.12044069]
[1748611441964,0.03457199,105410.0,105390.0,0.13604069]
[1748611442188,0.06304799,105410.0,105390.0,0.12084069]
[1748611442408,0.05356195,105410.0,105390.0,0.12084069]
[1748611442694,0.05356195,105410.0,105390.0,0.13604069]
[1748611442695,0.028476,105410.0,105390.0,0.13604069]
[1748611443145,0.02856841,105410.0,105390.0,0.13604069]
[1748611443588,0.03805436,105410.0,105390.0,0.03220069]
[1748611443795,0.06374058,105410.0,105390.0,0.01700069]
[1748611444014,0.07984058,105410.0,105390.0,0.01700069]
[1748611444435,0.07984049,105410.0,105390.0,0.01900069]
[1748611444649,0.07035436,105410.0,105390.0,0.01900069]
[1748611445097,0.04476841,105410.0,105390.0,0.01900069]
[1748611445321,0.02856841,105410.0,105390.0,0.03480069]
[1748611445542,0.02856841,105410.0,105400.0,0.0322]
[1748611445771,9.241e-05,105410.0,105400.0,0.0322]
[1748611445991,9.241e-05,105410.0,105400.0,0.04158186]
[1748611446218,9.241e-05,105410.0,105400.0,0.38158186]
[1748611446483,9.241e-05,105410.0,105400.0,0.47263581]
[1748611446754,0.00109241,105410.0,105400.0,0.47263581]
[1748611447234,0.00109241,105410.0,105400.0,0.68136418]
[1748611447449,0.00109241,105410.0,105400.0,0.69085139]
[1748611447670,0.00109241,105410.0,105400.0,0.68136427]
[1748611447892,9.241e-05,105410.0,105400.0,0.47263581]
[1748611448337,9.241e-05,105410.0,105400.0,0.48412347]
[1748611448564,9.241e-05,105410.0,105400.0,0.47463581]
[1748611449491,9.241e-05,105410.0,105400.0,0.78891581]
[1748611449723,9.241e-05,105410.0,105400.0,0.78991581]
[1748611449967,0.00109241,105410.0,105400.0,1.55324372]
[1748611450196,0.00109241,105410.0,105400.0,1.01313121]
[1748611450455,0.00109241,105410.0,105400.0,1.01813121]
[1748611450662,0.00109241,105410.0,105400.0,1.008644]
[1748611450877,0.00109241,105410.0,105400.0,1.01813121]
[1748611451101,0.00109241,105410.0,105400.0,1.02761824]
[1748611451542,0.00109241,105410.0,105400.0,1.01813121]
[1748611451753,0.00109241,105410.0,105400.0,1.01813103]
[1748611452173,0.00109241,105410.0,105400.0,1.01813112]
[1748611452384,0.00109241,105410.0,105400.0,1.02761815]
[1748611454190,0.0151,105480.0,105450.0,0.0166]
[1748611454461,0.00049053,105480.0,105460.0,0.0166]
[1748611454904,0.00049053,105480.0,105460.0,0.01897031]
[1748611455174,0.07551088,105470.0,105460.0,0.0166]
[1748611455889,0.07551088,105470.0,105460.0,0.0162]
[1748611456579,0.01649053,105480.0,105460.0,0.0162]
[1748611456803,0.01749053,105480.0,105460.0,0.0162]
[1748611457016,0.01649053,105480.0,105460.0,0.0162]
[1748611457460,0.001,105470.0,105460.0,0.0162]
[1748611457684,0.01649053,105480.0,105460.0,0.0162]
[1748611458145,0.00049053,105480.0,105460.0,0.01857031]
[1748611458348,0.00049053,105480.0,105460.0,0.35857031]
[1748611458558,0.00049053,105480.0,105460.0,0.3562]
[1748611459201,0.01749053,105480.0,105460.0,0.3562]
[1748611459847,0.01749053,105480.0,105460.0,0.34]
[1748611460080,0.01749053,105480.0,105460.0,0.3554]
[1748611460778,0.01949053,105480.0,105460.0,0.3554]
[1748611461891,0.02897028,105480.0,105460.0,0.3554]
[1748611462185,0.02897019,105480.0,105460.0,0.3554]
[1748611463264,0.01949053,105480.0,105460.0,0.3554]
[1748611464616,0.0384503,105480.0,105460.0,0.3554]
[1748611464846,0.02245003,105480.0,105460.0,0.34]
[1748611465065,0.03755003,105480.0,105460.0,0.3554]
[1748611465280,0.04703005,105480.0,105460.0,0.3554]
[1748611465510,0.02807019,105480.0,105460.0,0.3554]
[1748611465737,0.03755003,105480.0,105460.0,0.3554]
[1748611465999,0.02807019,105480.0,105460.0,0.3554]
[1748611466214,0.03755003,105480.0,105460.0,0.3554]
[1748611466870,0.02807019,105480.0,105460.0,0.3554]
[1748611467507,0.01859053,105480.0,105460.0,0.3554]
[1748611467738,0.00349053,105480.0,105470.0,0.0151]
[1748611467951,0.00349053,105480.0,105460.0,0.3713]
[1748611468903,0.00349053,105480.0,105460.0,0.3551]
[1748611469362,0.00149053,105480.0,105460.0,0.3551]
[1748611469595,0.00349053,105480.0,105460.0,0.3551]
[1748611470037,0.00149053,105480.0,105460.0,0.3551]
[1748611474593,0.00149053,105480.0,105460.0,0.3716]
[1748611475085,0.00149053,105480.0,105460.0,0.3551]
[1748611475342,0.01649053,105480.0,105460.0,0.3551]
[1748611478086,0.00149053,105480.0,105470.0,0.0159]
[1748611478318,0.00149053,105480.0,105470.0,0.0316]
[1748611479001,0.00049053,105480.0,105470.0,0.03397019]
[1748611479231,0.00449053,105480.0,105470.0,0.03397019]
[1748611479707,0.00249053,105480.0,105470.0,0.12502414]
[1748611479929,0.00249053,105480.0,105470.0,0.31465152]
[1748611479930,0.00049053,105480.0,105470.0,0.31465152]
[1748611480155,0.00049053,105480.0,105470.0,0.31228133]
[1748611480378,0.00149053,105480.0,105470.0,0.31228133]
[1748611480843,0.00149053,105480.0,105470.0,0.12265395]
[1748611487267,0.00149053,105480.0,105470.0,0.0316]
[1748611487510,0.01031668,105480.0,105470.0,0.0159]
[1748611487720,0.00149053,105480.0,105470.0,0.0159]
[1748611491495,0.00149053,105480.0,105470.0,0.12245395]
[1748611491720,0.00149053,105480.0,105470.0,0.1248241]
[1748611492160,0.00149053,105480.0,105470.0,0.12245395]
[1748611492597,0.00149053,105480.0,105470.0,0.12482392]
[1748611492840,0.00149053,105480.0,105470.0,0.12245395]
[1748611500431,0.01729053,105480.0,105460.0,0.3551]
[1748611500616,0.14943941,105480.0,105450.0,0.0303]
[1748611500845,0.0157,105470.0,105450.0,0.0151]
[1748611501064,0.037835,105470.0,105450.0,0.0151]
[1748611501517,0.0162,105460.0,105440.0,0.3554]
[1748611501750,0.0162,105460.0,105440.0,0.44645395]
[1748611502181,0.025235,105460.0,105440.0,0.44645395]
[1748611502396,0.025235,105460.0,105450.0,0.003]
[1748611502611,0.0162,105460.0,105450.0,0.003]
[1748611502831,0.025235,105460.0,105450.0,0.003]
[1748611503047,0.025235,105460.0,105440.0,0.0164]
[1748611503283,0.009035,105470.0,105450.0,0.0153]
[1748611503530,0.00903067,105470.0,105460.0,0.0153]
[1748611503764,0.0155,105470.0,105450.0,0.0153]
[1748611503987,0.02453067,105470.0,105450.0,0.0153]
[1748611504459,0.02538154,105460.0,105440.0,0.355]
[1748611504690,0.0159,105460.0,105440.0,0.356]
[1748611505116,0.0159,105460.0,105440.0,0.355]
[1748611505993,0.0159,105460.0,105440.0,0.356]
[1748611506215,0.13776535,105470.0,105440.0,0.3719]
[1748611506418,0.13776535,105470.0,105440.0,0.3729]
[1748611506625,0.14724617,105470.0,105440.0,0.3729]
[1748611506899,0.14724608,105470.0,105440.0,0.3579]
[1748611507117,0.13821541,105470.0,105450.0,0.0155]
[1748611507338,0.14162081,105470.0,105440.0,0.3734]
[1748611507556,0.0156,105460.0,105440.0,0.3565]
[1748611507978,0.02462262,105470.0,105450.0,0.0155]
[1748611508427,0.06,105460.0,105440.0,0.3565]
[1748611508637,0.0756,105460.0,105440.0,0.3565]
[1748611509060,0.0756,105460.0,105440.0,0.3575]
[1748611509278,0.0756,105460.0,105440.0,0.3565]
[1748611509706,0.0756,105460.0,105440.0,0.0165]
[1748611510362,0.06,105460.0,105440.0,0.0165]
[1748611510577,0.06,105460.0,105450.0,0.0159]
[1748611511445,0.088463,105460.0,105450.0,0.0159]
[1748611513750,0.06,105460.0,105450.0,0.0159]
[1748611514226,0.06,105460.0,105450.0,0.0311]
[1748611514920,0.06,105460.0,105450.0,0.3711]
[1748611516451,0.02894953,105480.0,105460.0,0.0311]
[1748611516667,0.00049053,105480.0,105470.0,0.0311]
[1748611518623,0.00249053,105480.0,105470.0,0.0311]
[1748611519053,0.00049053,105480.0,105470.0,0.0311]
[1748611519261,0.00049053,105480.0,105470.0,0.03347007]
[1748611519744,0.00049053,105480.0,105470.0,0.0311]
[1748611521491,0.00049053,105480.0,105470.0,0.03347007]
[1748611521727,0.00049053,105480.0,105470.0,0.46452402]
[1748611521946,0.00049053,105480.0,105470.0,0.46215395]
[1748611528809,0.00049053,105480.0,105470.0,1.20060512]
[1748611529053,0.00049053,105480.0,105470.0,0.46215395]
[1748611530649,0.00049053,105480.0,105470.0,0.66126269]
[1748611530928,0.00049053,105480.0,105470.0,0.46215395]
[1748611535063,0.00049053,105480.0,105470.0,0.65178133]
[1748611535272,0.00049053,105480.0,105470.0,0.46215395]
[1748611540414,0.00049053,105480.0,105470.0,0.65178133]
[1748611540619,0.00049053,105480.0,105470.0,0.66126269]
[1748611541067,0.00049053,105480.0,105470.0,0.67074396]
[1748611541292,0.00049053,105480.0,105470.0,1.22904848]
[1748611541516,0.00049053,105480.0,105470.0,1.79241249]
[1748611541740,0.02,105520.0,105510.0,0.91054243]
[1748611541965,0.02,105520.0,105510.0,1.10271638]
[1748611542189,0.02014714,105520.0,105510.0,1.10271638]
[1748611542662,0.02014714,105520.0,105510.0,1.12132426]
[1748611543540,0.02014714,105520.0,105510.0,1.12332426]
[1748611543774,0.02014714,105520.0,105510.0,0.58398183]
[1748611544001,0.02014714,105520.0,105510.0,1.13291837]
[1748611544220,0.02014714,105520.0,105510.0,0.59357594]
[1748611544441,0.02014714,105520.0,105510.0,1.13291837]
[1748611544945,0.02014714,105520.0,105510.0,0.59357594]
[1748611545412,0.02014714,105520.0,105510.0,1.13591837]
[1748611547705,0.02014714,105520.0,105510.0,0.59657594]
[1748611548141,0.02014714,105520.0,105510.0,1.13591837]
[1748611548394,0.02014714,105520.0,105510.0,0.59657594]
[1748611549522,0.02014714,105520.0,105510.0,0.49545594]
[1748611549731,0.02014714,105520.0,105510.0,0.59657594]
[1748611552187,0.02014714,105520.0,105510.0,0.47985594]
[1748611552411,0.23546072,105520.0,105510.0,0.02360788]
[1748611552647,0.05004714,105520.0,105510.0,0.005]
[1748611553142,0.0595232,105520.0,105510.0,0.005]
[1748611553579,0.05004714,105520.0,105510.0,0.002]
[1748611554030,0.05004714,105520.0,105510.0,0.003]
[1748611554455,0.05004714,105520.0,105510.0,0.001]
[1748611554901,0.26801356,105520.0,105510.0,0.002]
[1748611555120,0.0595232,105520.0,105510.0,0.002]
[1748611555349,0.06899935,105520.0,105510.0,0.002]
[1748611555572,0.08796169,105520.0,105510.0,0.002]
[1748611555783,0.06899935,105520.0,105510.0,0.002]
[1748611556215,0.06899935,105520.0,105510.0,0.001]
[1748611556651,0.06417559,105520.0,105490.0,0.36610723]
[1748611556869,0.0155,105510.0,105490.0,0.45716118]
[1748611557740,0.0291,105510.0,105490.0,0.34970723]
[1748611557953,0.0291,105510.0,105490.0,0.35070723]
[1748611558383,0.0136,105510.0,105490.0,0.35070723]
[1748611558597,0.0291,105510.0,105490.0,0.34970723]
[1748611558803,0.0162,105500.0,105490.0,0.341]
[1748611559497,0.03315417,105520.0,105490.0,0.3564]